[Event "Titled Tuesday Blitz March 01 Late 2022"]
[White "Maltsevskaya, Aleksandra"]
[Black "Mickiewicz, Piotr"]
[WhiteFideId "24174041"]
[BlackFideId "1114891"]
[WhiteElo "2283"]
[BlackElo "2266"]
[Result "1-0"]
[Round "11"]
[TimeControl "180+1"]
[Date "2022.03.01"]
[WhiteClock "0:00:52"]
[BlackClock "0:00:11"]

1. Nf3 {[%clk 0:02:57]}  Nf6 {[%clk 0:02:58]} 2. g3 {[%clk 0:02:58]}  g6 {[%clk 0:02:58]} 3. Bg2 {[%clk 0:02:58]}  Bg7 {[%clk 0:02:59]} 4. O-O {[%clk 0:02:59]}  O-O {[%clk 0:02:59]} 5. d4 {[%clk 0:02:59]}  d6 {[%clk 0:02:59]} 6. c4 {[%clk 0:03:00]}  Nc6 {[%clk 0:02:59]} 7. Nc3 {[%clk 0:03:01]}  Bg4 {[%clk 0:02:59]} 8. b3 {[%clk 0:03:00]}  e5 {[%clk 0:02:52]} 9. dxe5 {[%clk 0:03:00]}  Nd7 {[%clk 0:02:52]} 10. Bb2 {[%clk 0:03:00]}  dxe5 {[%clk 0:02:48]} 11. h3 {[%clk 0:02:57]}  Bf5 {[%clk 0:02:44]} 12. e4 {[%clk 0:02:47]}  Be6 {[%clk 0:02:43]} 13. Qe2 {[%clk 0:02:46]}  Nd4 {[%clk 0:02:41]} 14. Nxd4 {[%clk 0:02:46]}  exd4 {[%clk 0:02:42]} 15. Nb5 {[%clk 0:02:46]}  d3 {[%clk 0:02:08]} 16. Qd2 {[%clk 0:02:44]}  Ne5 {[%clk 0:01:46]} 17. f4 {[%clk 0:02:40]}  Nc6 {[%clk 0:01:45]} 18. Bxg7 {[%clk 0:02:38]}  Kxg7 {[%clk 0:01:44]} 19. Rad1 {[%clk 0:02:38]}  a6 {[%clk 0:01:41]} 20. Nc3 {[%clk 0:02:38]}  Qd4+ {[%clk 0:01:41]} 21. Kh2 {[%clk 0:02:38]}  Rad8 {[%clk 0:01:38]} 22. Nd5 {[%clk 0:02:37]}  Bxd5 {[%clk 0:01:09]} 23. exd5 {[%clk 0:02:38]}  Ne7 {[%clk 0:01:07]} 24. Qxd3 {[%clk 0:02:32]}  Qxd3 {[%clk 0:01:08]} 25. Rxd3 {[%clk 0:02:33]}  b6 {[%clk 0:00:53]} 26. Re1 {[%clk 0:02:31]}  Nf5 {[%clk 0:00:52]} 27. g4 {[%clk 0:02:31]}  Nd6 {[%clk 0:00:52]} 28. Rde3 {[%clk 0:02:29]}  Rfe8 {[%clk 0:00:50]} 29. Kg3 {[%clk 0:02:28]}  Rxe3+ {[%clk 0:00:44]} 30. Rxe3 {[%clk 0:02:29]}  Kf8 {[%clk 0:00:45]} 31. Kf2 {[%clk 0:02:24]}  a5 {[%clk 0:00:45]} 32. Bf3 {[%clk 0:02:23]}  h6 {[%clk 0:00:44]} 33. Re5 {[%clk 0:02:24]}  a4 {[%clk 0:00:41]} 34. Ke3 {[%clk 0:02:05]}  axb3 {[%clk 0:00:40]} 35. axb3 {[%clk 0:02:06]}  Ra8 {[%clk 0:00:41]} 36. Kd4 {[%clk 0:02:05]}  Ra3 {[%clk 0:00:41]} 37. Bd1 {[%clk 0:02:00]}  Ra2 {[%clk 0:00:39]} 38. Re2 {[%clk 0:02:00]}  Ra1 {[%clk 0:00:38]} 39. Rd2 {[%clk 0:01:58]}  Rc1 {[%clk 0:00:37]} 40. Rd3 {[%clk 0:01:38]}  g5 {[%clk 0:00:35]} 41. fxg5 {[%clk 0:01:36]}  hxg5 {[%clk 0:00:36]} 42. Ke3 {[%clk 0:01:36]}  f6 {[%clk 0:00:34]} 43. Kd2 {[%clk 0:01:36]}  Ra1 {[%clk 0:00:34]} 44. Kc3 {[%clk 0:01:34]}  Ne4+ {[%clk 0:00:31]} 45. Kb2 {[%clk 0:01:34]}  Ra8 {[%clk 0:00:28]} 46. Re3 {[%clk 0:01:33]}  Nc5 {[%clk 0:00:23]} 47. b4 {[%clk 0:01:33]}  Nd7 {[%clk 0:00:22]} 48. Bb3 {[%clk 0:01:29]}  Ne5 {[%clk 0:00:21]} 49. c5 {[%clk 0:01:29]}  bxc5 {[%clk 0:00:21]} 50. bxc5 {[%clk 0:01:30]}  Rb8 {[%clk 0:00:22]} 51. Kc3 {[%clk 0:01:30]}  Ke7 {[%clk 0:00:22]} 52. Ba4 {[%clk 0:01:24]}  Rb1 {[%clk 0:00:22]} 53. Bc2 {[%clk 0:01:16]}  Rc1 {[%clk 0:00:21]} 54. Re4 {[%clk 0:01:04]}  Rf1 {[%clk 0:00:21]} 55. Rd4 {[%clk 0:01:00]}  Rf3+ {[%clk 0:00:20]} 56. Kb2 {[%clk 0:01:00]}  Rxh3 {[%clk 0:00:20]} 57. d6+ {[%clk 0:00:55]}  cxd6 {[%clk 0:00:21]} 58. cxd6+ {[%clk 0:00:56]}  Kd8 {[%clk 0:00:21]} 59. Bf5 {[%clk 0:00:56]}  Rh2+ {[%clk 0:00:17]} 60. Kc1 {[%clk 0:00:56]}  Rh1+ {[%clk 0:00:14]} 61. Kc2 {[%clk 0:00:55]}  Rh2+ {[%clk 0:00:15]} 62. Kd1 {[%clk 0:00:56]}  Rh1+ {[%clk 0:00:15]} 63. Ke2 {[%clk 0:00:56]}  Rh2+ {[%clk 0:00:15]} 64. Kf1 {[%clk 0:00:56]}  Rc2 {[%clk 0:00:15]} 65. Ra4 {[%clk 0:00:53]}  Rc1+ {[%clk 0:00:13]} 66. Ke2 {[%clk 0:00:53]}  Rc2+ {[%clk 0:00:12]} 67. Kd1 {[%clk 0:00:53]}  Rc7 {[%clk 0:00:11]} 68. Ra8+ {[%clk 0:00:52]} 1-0


[Site "https://www.chess.com"]

[Event "Titled Tuesday Blitz March 01 Late 2022"]
[White "Martin Barcelo, Carles"]
[Black "Tomiello, Mateus Costamilan"]
[WhiteFideId "24561444"]
[BlackFideId "22701958"]
[WhiteElo "1875"]
[BlackElo "1975"]
[Result "0-1"]
[Round "11"]
[TimeControl "180+1"]
[Date "2022.03.02"]
[WhiteClock "0:00:01"]
[BlackClock "0:00:57"]

1. e4 {[%clk 0:03:00]}  e5 {[%clk 0:02:59]} 2. Nf3 {[%clk 0:02:55]}  Nc6 {[%clk 0:02:59]} 3. Bb5 {[%clk 0:02:51]}  Nf6 {[%clk 0:02:58]} 4. O-O {[%clk 0:02:42]}  Nxe4 {[%clk 0:02:58]} 5. Re1 {[%clk 0:02:40]}  Nd6 {[%clk 0:02:57]} 6. Nxe5 {[%clk 0:02:40]}  Be7 {[%clk 0:02:56]} 7. Bf1 {[%clk 0:02:38]}  Nxe5 {[%clk 0:02:55]} 8. Rxe5 {[%clk 0:02:38]}  O-O {[%clk 0:02:55]} 9. Nc3 {[%clk 0:02:39]}  Re8 {[%clk 0:02:54]} 10. Nd5 {[%clk 0:02:29]}  Bf8 {[%clk 0:02:53]} 11. d4 {[%clk 0:02:20]}  c6 {[%clk 0:02:50]} 12. Nc3 {[%clk 0:02:10]}  g6 {[%clk 0:02:47]} 13. Bg5 {[%clk 0:02:06]}  Qb6 {[%clk 0:02:37]} 14. Na4 {[%clk 0:01:50]}  Qc7 {[%clk 0:02:35]} 15. Bf4 {[%clk 0:01:42]}  Rxe5 {[%clk 0:02:32]} 16. dxe5 {[%clk 0:01:35]}  Nf5 {[%clk 0:02:30]} 17. Nc3 {[%clk 0:01:29]}  d5 {[%clk 0:02:25]} 18. exd6 {[%clk 0:01:29]}  Bxd6 {[%clk 0:02:24]} 19. Bxd6 {[%clk 0:01:29]}  Nxd6 {[%clk 0:02:24]} 20. Qf3 {[%clk 0:01:26]}  Be6 {[%clk 0:02:22]} 21. Rd1 {[%clk 0:01:26]}  Nf5 {[%clk 0:02:16]} 22. Ne4 {[%clk 0:01:23]}  Qe5 {[%clk 0:02:14]} 23. Nc3 {[%clk 0:01:14]}  Nd4 {[%clk 0:02:07]} 24. Qd3 {[%clk 0:01:10]}  c5 {[%clk 0:02:05]} 25. Ne2 {[%clk 0:01:08]}  Bf5 {[%clk 0:02:02]} 26. Qc4 {[%clk 0:01:02]}  b5 {[%clk 0:01:52]} 27. Qc3 {[%clk 0:00:35]}  Nxe2+ {[%clk 0:01:51]} 28. Bxe2 {[%clk 0:00:35]}  Qxe2 {[%clk 0:01:51]} 29. Re1 {[%clk 0:00:35]}  Qc4 {[%clk 0:01:45]} 30. Qf6 {[%clk 0:00:33]}  Qxc2 {[%clk 0:01:35]} 31. h4 {[%clk 0:00:32]}  h5 {[%clk 0:01:32]} 32. Re7 {[%clk 0:00:31]}  Rf8 {[%clk 0:01:30]} 33. Rxa7 {[%clk 0:00:23]}  c4 {[%clk 0:01:23]} 34. Rc7 {[%clk 0:00:20]}  b4 {[%clk 0:01:22]} 35. Qc6 {[%clk 0:00:15]}  Be6 {[%clk 0:01:20]} 36. Re7 {[%clk 0:00:09]}  Qb1+ {[%clk 0:01:10]} 37. Kh2 {[%clk 0:00:10]}  Qxb2 {[%clk 0:01:07]} 38. Qf3 {[%clk 0:00:05]}  Qe5+ {[%clk 0:01:07]} 39. Kg1 {[%clk 0:00:03]}  Qd6 {[%clk 0:01:06]} 40. Ra7 {[%clk 0:00:02]}  c3 {[%clk 0:01:05]} 41. Qf6 {[%clk 0:00:03]}  Qc5 {[%clk 0:01:03]} 42. Re7 {[%clk 0:00:02]}  c2 {[%clk 0:01:02]} 43. Rxe6 {[%clk 0:00:02]}  c1=Q+ {[%clk 0:01:02]} 44. Kh2 {[%clk 0:00:03]}  Qc7+ {[%clk 0:01:00]} 45. g3 {[%clk 0:00:01]}  Qb7 {[%clk 0:00:57]} 0-1


[Site "https://www.chess.com"]

[Event "Titled Tuesday Blitz March 01 Late 2022"]
[White "Martinez Alcantara, Jose Eduardo"]
[Black "Sadhwani, Raunak"]
[WhiteFideId "3805662"]
[BlackFideId "35093487"]
[WhiteElo "2690"]
[BlackElo "2616"]
[Result "1/2-1/2"]
[Round "11"]
[TimeControl "180+1"]
[Date "2022.03.01"]
[WhiteClock "0:00:05"]
[BlackClock "0:00:04"]

1. e4 {[%clk 0:03:00]}  e5 {[%clk 0:03:00]} 2. Nf3 {[%clk 0:03:01]}  Nc6 {[%clk 0:03:00]} 3. Bb5 {[%clk 0:03:01]}  Nge7 {[%clk 0:03:01]} 4. O-O {[%clk 0:03:02]}  Ng6 {[%clk 0:03:00]} 5. d4 {[%clk 0:03:00]}  exd4 {[%clk 0:03:01]} 6. Nxd4 {[%clk 0:03:00]}  Bc5 {[%clk 0:03:01]} 7. Nb3 {[%clk 0:02:51]}  Bb6 {[%clk 0:02:56]} 8. c4 {[%clk 0:02:44]}  d6 {[%clk 0:02:51]} 9. c5 {[%clk 0:02:32]}  dxc5 {[%clk 0:02:40]} 10. Bxc6+ {[%clk 0:01:49]}  bxc6 {[%clk 0:02:41]} 11. Qc2 {[%clk 0:01:48]}  O-O {[%clk 0:02:27]} 12. Na3 {[%clk 0:01:34]}  Qh4 {[%clk 0:02:20]} 13. Nc4 {[%clk 0:01:30]}  a5 {[%clk 0:02:06]} 14. Be3 {[%clk 0:01:27]}  Re8 {[%clk 0:02:02]} 15. Nbd2 {[%clk 0:01:18]}  a4 {[%clk 0:01:50]} 16. f4 {[%clk 0:01:15]}  Ba6 {[%clk 0:01:31]} 17. Rae1 {[%clk 0:00:58]}  Bb5 {[%clk 0:01:27]} 18. g3 {[%clk 0:00:55]}  Qh3 {[%clk 0:01:23]} 19. Rf2 {[%clk 0:00:47]}  Rad8 {[%clk 0:01:17]} 20. b3 {[%clk 0:00:47]}  axb3 {[%clk 0:01:08]} 21. axb3 {[%clk 0:00:48]}  Qd7 {[%clk 0:01:05]} 22. f5 {[%clk 0:00:31]}  Ne5 {[%clk 0:01:06]} 23. Nxe5 {[%clk 0:00:32]}  Rxe5 {[%clk 0:01:06]} 24. Nc4 {[%clk 0:00:32]}  Bxc4 {[%clk 0:00:57]} 25. bxc4 {[%clk 0:00:33]}  Ba5 {[%clk 0:00:53]} 26. Ra1 {[%clk 0:00:30]}  Bb4 {[%clk 0:00:53]} 27. Bf4 {[%clk 0:00:26]}  Ree8 {[%clk 0:00:49]} 28. e5 {[%clk 0:00:26]}  Qd4 {[%clk 0:00:31]} 29. Rf1 {[%clk 0:00:24]}  Qc3 {[%clk 0:00:32]} 30. f6 {[%clk 0:00:16]}  g6 {[%clk 0:00:18]} 31. Kg2 {[%clk 0:00:16]}  Rd4 {[%clk 0:00:15]} 32. Qxc3 {[%clk 0:00:09]}  Bxc3 {[%clk 0:00:16]} 33. Rc2 {[%clk 0:00:09]}  Rd3 {[%clk 0:00:16]} 34. Rf3 {[%clk 0:00:09]}  Rxf3 {[%clk 0:00:16]} 35. Kxf3 {[%clk 0:00:10]}  Bd4 {[%clk 0:00:17]} 36. Ra2 {[%clk 0:00:09]}  h6 {[%clk 0:00:17]} 37. h4 {[%clk 0:00:08]}  g5 {[%clk 0:00:18]} 38. hxg5 {[%clk 0:00:09]}  hxg5 {[%clk 0:00:18]} 39. Bxg5 {[%clk 0:00:09]}  Rxe5 {[%clk 0:00:18]} 40. Ra8+ {[%clk 0:00:05]}  Kh7 {[%clk 0:00:18]} 41. Bf4 {[%clk 0:00:06]}  Rf5 {[%clk 0:00:16]} 42. Rc8 {[%clk 0:00:05]}  Rxf6 {[%clk 0:00:13]} 43. Kg4 {[%clk 0:00:05]}  Rg6+ {[%clk 0:00:10]} 44. Kf3 {[%clk 0:00:03]}  Rf6 {[%clk 0:00:11]} 45. Kg4 {[%clk 0:00:03]}  Re6 {[%clk 0:00:10]} 46. Rxc7 {[%clk 0:00:03]}  Kg6 {[%clk 0:00:11]} 47. Rc8 {[%clk 0:00:03]}  f5+ {[%clk 0:00:09]} 48. Kf3 {[%clk 0:00:04]}  Kf7 {[%clk 0:00:07]} 49. Rc7+ {[%clk 0:00:04]}  Kf6 {[%clk 0:00:08]} 50. Rh7 {[%clk 0:00:02]}  Kg6 {[%clk 0:00:04]} 51. Rh6+ {[%clk 0:00:02]}  Kf7 {[%clk 0:00:05]} 52. Rh5 {[%clk 0:00:03]}  Rf6 {[%clk 0:00:05]} 53. Rh7+ {[%clk 0:00:03]}  Kg6 {[%clk 0:00:04]} 54. Rc7 {[%clk 0:00:04]}  Re6 {[%clk 0:00:04]} 55. Rc8 {[%clk 0:00:04]}  Bf6 {[%clk 0:00:05]} 56. Be3 {[%clk 0:00:04]}  Re4 {[%clk 0:00:04]} 57. Rxc6 {[%clk 0:00:03]}  Rxc4 {[%clk 0:00:04]} 58. Rxc5 {[%clk 0:00:03]}  Re4 {[%clk 0:00:03]} 59. Rc6 {[%clk 0:00:03]}  Ra4 {[%clk 0:00:03]} 60. Bc1 {[%clk 0:00:02]}  Kf7 {[%clk 0:00:03]} 61. Kg2 {[%clk 0:00:02]}  Be5 {[%clk 0:00:04]} 62. Rc5 {[%clk 0:00:02]}  Ke6 {[%clk 0:00:04]} 63. Rc6+ {[%clk 0:00:03]}  Kd5 {[%clk 0:00:04]} 64. Rc2 {[%clk 0:00:04]}  Rg4 {[%clk 0:00:04]} 65. Rd2+ {[%clk 0:00:04]}  Ke6 {[%clk 0:00:04]} 66. Rd3 {[%clk 0:00:04]}  f4 {[%clk 0:00:05]} 67. Kh3 {[%clk 0:00:04]}  Rxg3+ {[%clk 0:00:02]} 68. Rxg3 {[%clk 0:00:04]}  fxg3 {[%clk 0:00:03]} 69. Be3 {[%clk 0:00:04]}  Kf5 {[%clk 0:00:03]} 70. Kg2 {[%clk 0:00:05]}  Kg4 {[%clk 0:00:04]} 71. Bf2 {[%clk 0:00:05]}  Bf4 {[%clk 0:00:04]} 72. Bxg3 {[%clk 0:00:05]} 1/2-1/2


[Site "https://www.chess.com"]

[Event "Titled Tuesday Blitz March 01 Late 2022"]
[White "Miszler, Levente"]
[Black "Peatman, Carter"]
[WhiteFideId "763276"]
[BlackFideId "2096480"]
[WhiteElo "1966"]
[BlackElo "2281"]
[Result "0-1"]
[Round "11"]
[TimeControl "180+1"]
[Date "2022.03.02"]
[WhiteClock "0:00:38"]
[BlackClock "0:00:31"]

1. d4 {[%clk 0:03:00]}  d5 {[%clk 0:02:59]} 2. c4 {[%clk 0:02:59]}  dxc4 {[%clk 0:03:00]} 3. e3 {[%clk 0:02:59]}  e5 {[%clk 0:03:00]} 4. Nf3 {[%clk 0:02:55]}  Bb4+ {[%clk 0:02:58]} 5. Bd2 {[%clk 0:02:53]}  Bxd2+ {[%clk 0:02:58]} 6. Nbxd2 {[%clk 0:02:54]}  exd4 {[%clk 0:02:58]} 7. Nxd4 {[%clk 0:02:52]}  Nf6 {[%clk 0:02:53]} 8. Bxc4 {[%clk 0:02:50]}  a6 {[%clk 0:02:53]} 9. O-O {[%clk 0:02:46]}  O-O {[%clk 0:02:49]} 10. Qc2 {[%clk 0:02:44]}  c5 {[%clk 0:02:37]} 11. N4f3 {[%clk 0:02:41]}  b5 {[%clk 0:02:36]} 12. Be2 {[%clk 0:02:41]}  Nbd7 {[%clk 0:02:33]} 13. Rfd1 {[%clk 0:02:40]}  Qe7 {[%clk 0:02:33]} 14. Ng5 {[%clk 0:02:34]}  h6 {[%clk 0:02:29]} 15. Nge4 {[%clk 0:02:33]}  Bb7 {[%clk 0:02:25]} 16. Nxf6+ {[%clk 0:02:32]}  Nxf6 {[%clk 0:02:26]} 17. Bf3 {[%clk 0:02:31]}  c4 {[%clk 0:02:12]} 18. b3 {[%clk 0:02:29]}  cxb3 {[%clk 0:02:08]} 19. axb3 {[%clk 0:02:27]}  Rfd8 {[%clk 0:02:05]} 20. Bxb7 {[%clk 0:02:25]}  Qxb7 {[%clk 0:02:06]} 21. Nf3 {[%clk 0:02:25]}  Rac8 {[%clk 0:02:05]} 22. Qf5 {[%clk 0:02:24]}  Ne4 {[%clk 0:01:44]} 23. Ne5 {[%clk 0:02:16]}  Nc3 {[%clk 0:01:39]} 24. Rxd8+ {[%clk 0:02:11]}  Rxd8 {[%clk 0:01:40]} 25. h3 {[%clk 0:02:05]}  a5 {[%clk 0:01:34]} 26. Rxa5 {[%clk 0:02:00]}  f6 {[%clk 0:01:07]} 27. Qe6+ {[%clk 0:01:56]}  Kh7 {[%clk 0:01:04]} 28. Qf5+ {[%clk 0:01:34]}  Kg8 {[%clk 0:01:01]} 29. Qe6+ {[%clk 0:01:29]}  Kh7 {[%clk 0:01:01]} 30. Nc6 {[%clk 0:01:04]}  Rd1+ {[%clk 0:00:46]} 31. Kh2 {[%clk 0:01:03]}  Qc7+ {[%clk 0:00:47]} 32. g3 {[%clk 0:01:03]}  Rd6 {[%clk 0:00:31]} 33. Qf5+ {[%clk 0:00:56]}  g6 {[%clk 0:00:31]} 34. Qxb5 {[%clk 0:00:38]}  Nxb5 {[%clk 0:00:31]} 0-1


[Site "https://www.chess.com"]

[Event "Titled Tuesday Blitz March 01 Late 2022"]
[White "Moral Garcia, Serafin"]
[Black "Dronavalli, Harika"]
[WhiteFideId "2201925"]
[BlackFideId "5015197"]
[WhiteElo "2228"]
[BlackElo "2382"]
[Result "0-1"]
[Round "11"]
[TimeControl "180+1"]
[Date "2022.03.01"]
[WhiteClock "0:01:20"]
[BlackClock "0:00:55"]

1. e4 {[%clk 0:03:00]}  c5 {[%clk 0:02:59]} 2. Nf3 {[%clk 0:03:00]}  e6 {[%clk 0:02:59]} 3. c3 {[%clk 0:03:00]}  Nf6 {[%clk 0:02:58]} 4. e5 {[%clk 0:03:00]}  Nd5 {[%clk 0:02:58]} 5. Bc4 {[%clk 0:03:00]}  Nb6 {[%clk 0:02:58]} 6. Bb3 {[%clk 0:02:58]}  c4 {[%clk 0:02:37]} 7. Bc2 {[%clk 0:02:57]}  d6 {[%clk 0:02:38]} 8. exd6 {[%clk 0:02:57]}  Bxd6 {[%clk 0:02:37]} 9. b3 {[%clk 0:02:57]}  Qc7 {[%clk 0:02:23]} 10. Qe2 {[%clk 0:02:57]}  Bd7 {[%clk 0:02:17]} 11. O-O {[%clk 0:02:50]}  a5 {[%clk 0:02:02]} 12. d4 {[%clk 0:02:40]}  cxd3 {[%clk 0:01:59]} 13. Bxd3 {[%clk 0:02:35]}  a4 {[%clk 0:01:54]} 14. b4 {[%clk 0:02:23]}  Nc6 {[%clk 0:01:53]} 15. a3 {[%clk 0:02:22]}  Ne5 {[%clk 0:01:52]} 16. Nxe5 {[%clk 0:02:08]}  Bxe5 {[%clk 0:01:52]} 17. Bb2 {[%clk 0:02:08]}  Bxh2+ {[%clk 0:01:51]} 18. Kh1 {[%clk 0:02:08]}  Be5 {[%clk 0:01:48]} 19. c4 {[%clk 0:02:03]}  Bxb2 {[%clk 0:01:48]} 20. Qxb2 {[%clk 0:02:03]}  O-O {[%clk 0:01:48]} 21. Nd2 {[%clk 0:01:59]}  Qf4 {[%clk 0:01:47]} 22. Rae1 {[%clk 0:01:58]}  Rfd8 {[%clk 0:01:44]} 23. Re4 {[%clk 0:01:49]}  Qh6+ {[%clk 0:01:44]} 24. Kg1 {[%clk 0:01:49]}  Bc6 {[%clk 0:01:43]} 25. Re3 {[%clk 0:01:49]}  Qf6 {[%clk 0:01:01]} 26. Qxf6 {[%clk 0:01:33]}  gxf6 {[%clk 0:01:00]} 27. c5 {[%clk 0:01:34]}  Nd5 {[%clk 0:00:59]} 28. Rg3+ {[%clk 0:01:35]}  Kh8 {[%clk 0:00:58]} 29. Nc4 {[%clk 0:01:35]}  Nf4 {[%clk 0:00:56]} 30. Bb1 {[%clk 0:01:20]}  Ne2+ {[%clk 0:00:55]} 0-1


[Site "https://www.chess.com"]

[Event "Titled Tuesday Blitz March 01 Late 2022"]
[White "Romanchuk, Viktor"]
[Black "Ladan, Nicholas"]
[WhiteFideId "14109271"]
[BlackFideId "30918855"]
[WhiteElo "2242"]
[BlackElo "2378"]
[Result "1-0"]
[Round "11"]
[TimeControl "180+1"]
[Date "2022.03.02"]
[WhiteClock "0:00:20"]
[BlackClock "0:00:01"]

1. d4 {[%clk 0:03:00]}  d5 {[%clk 0:03:00]} 2. c4 {[%clk 0:03:00]}  c6 {[%clk 0:03:00]} 3. Nc3 {[%clk 0:03:01]}  Nf6 {[%clk 0:03:00]} 4. e3 {[%clk 0:03:01]}  e6 {[%clk 0:02:58]} 5. Nf3 {[%clk 0:03:01]}  Nbd7 {[%clk 0:02:58]} 6. Qc2 {[%clk 0:03:01]}  Bd6 {[%clk 0:02:57]} 7. b3 {[%clk 0:03:01]}  O-O {[%clk 0:02:58]} 8. Bb2 {[%clk 0:02:59]}  b6 {[%clk 0:02:58]} 9. Be2 {[%clk 0:02:57]}  Bb7 {[%clk 0:02:59]} 10. O-O {[%clk 0:02:56]}  Rc8 {[%clk 0:02:59]} 11. e4 {[%clk 0:02:56]}  dxe4 {[%clk 0:02:59]} 12. Nxe4 {[%clk 0:02:57]}  Nxe4 {[%clk 0:02:56]} 13. Qxe4 {[%clk 0:02:58]}  Nf6 {[%clk 0:02:56]} 14. Qh4 {[%clk 0:02:58]}  h6 {[%clk 0:02:48]} 15. Rad1 {[%clk 0:02:57]}  Qe7 {[%clk 0:02:42]} 16. Ne5 {[%clk 0:02:43]}  c5 {[%clk 0:02:35]} 17. dxc5 {[%clk 0:02:39]}  Bxc5 {[%clk 0:02:35]} 18. Nd7 {[%clk 0:02:38]}  Nxd7 {[%clk 0:01:41]} 19. Qxe7 {[%clk 0:02:34]}  Bxe7 {[%clk 0:01:42]} 20. Rxd7 {[%clk 0:02:34]}  Bf6 {[%clk 0:01:42]} 21. Bxf6 {[%clk 0:02:33]}  Bc6 {[%clk 0:01:42]} 22. Rxa7 {[%clk 0:01:44]}  gxf6 {[%clk 0:01:41]} 23. Ra6 {[%clk 0:01:45]}  Rb8 {[%clk 0:01:33]} 24. Rd1 {[%clk 0:01:44]}  Rfc8 {[%clk 0:01:28]} 25. f3 {[%clk 0:01:41]}  Rc7 {[%clk 0:01:22]} 26. Kf2 {[%clk 0:01:39]}  Kf8 {[%clk 0:01:22]} 27. Ke3 {[%clk 0:01:37]}  Ke7 {[%clk 0:01:23]} 28. b4 {[%clk 0:01:37]}  f5 {[%clk 0:01:11]} 29. g3 {[%clk 0:01:32]}  b5 {[%clk 0:00:58]} 30. c5 {[%clk 0:01:22]}  Bd5 {[%clk 0:00:58]} 31. a3 {[%clk 0:01:18]}  h5 {[%clk 0:00:48]} 32. Bd3 {[%clk 0:01:11]}  Rc6 {[%clk 0:00:40]} 33. Ra5 {[%clk 0:00:59]}  Bc4 {[%clk 0:00:30]} 34. Bxc4 {[%clk 0:00:56]}  bxc4 {[%clk 0:00:31]} 35. Rc1 {[%clk 0:00:56]}  h4 {[%clk 0:00:29]} 36. Rxc4 {[%clk 0:00:55]}  hxg3 {[%clk 0:00:29]} 37. hxg3 {[%clk 0:00:56]}  Rbc8 {[%clk 0:00:20]} 38. Kd4 {[%clk 0:00:47]}  Kf6 {[%clk 0:00:19]} 39. b5 {[%clk 0:00:46]}  e5+ {[%clk 0:00:17]} 40. Kd5 {[%clk 0:00:44]}  Re6 {[%clk 0:00:17]} 41. c6 {[%clk 0:00:43]}  e4 {[%clk 0:00:17]} 42. fxe4 {[%clk 0:00:42]}  fxe4 {[%clk 0:00:18]} 43. Raa4 {[%clk 0:00:35]}  e3 {[%clk 0:00:17]} 44. Rf4+ {[%clk 0:00:34]}  Ke7 {[%clk 0:00:17]} 45. Rae4 {[%clk 0:00:34]}  Rd8+ {[%clk 0:00:17]} 46. Kc5 {[%clk 0:00:33]}  e2 {[%clk 0:00:08]} 47. Rxe6+ {[%clk 0:00:32]}  fxe6 {[%clk 0:00:09]} 48. Re4 {[%clk 0:00:32]}  Rd5+ {[%clk 0:00:08]} 49. Kb6 {[%clk 0:00:32]}  Rd2 {[%clk 0:00:09]} 50. c7 {[%clk 0:00:25]}  Kd7 {[%clk 0:00:08]} 51. Kb7 {[%clk 0:00:25]}  Rc2 {[%clk 0:00:09]} 52. b6 {[%clk 0:00:26]}  e5 {[%clk 0:00:03]} 53. Rxe5 {[%clk 0:00:23]}  Rxc7+ {[%clk 0:00:01]} 54. bxc7 {[%clk 0:00:22]}  e1=Q {[%clk 0:00:02]} 55. c8=Q+ {[%clk 0:00:21]}  Kd6 {[%clk 0:00:01]} 56. Qe6# {[%clk 0:00:20]} 1-0


[Site "https://www.chess.com"]

[Event "Titled Tuesday Blitz March 01 Late 2022"]
[White "Rorrer, Grayson"]
[Black "Piesik, Piotr"]
[WhiteFideId "30944996"]
[BlackFideId "1136194"]
[WhiteElo "2122"]
[BlackElo "2232"]
[Result "1-0"]
[Round "11"]
[TimeControl "180+1"]
[Date "2022.03.01"]
[WhiteClock "0:00:34"]
[BlackClock "0:00:55"]

1. e4 {[%clk 0:03:00]}  g6 {[%clk 0:02:44]} 2. d4 {[%clk 0:02:59]}  Bg7 {[%clk 0:02:44]} 3. Nc3 {[%clk 0:02:57]}  c6 {[%clk 0:02:44]} 4. Be3 {[%clk 0:02:57]}  d5 {[%clk 0:02:44]} 5. e5 {[%clk 0:02:57]}  Nh6 {[%clk 0:02:44]} 6. Qd2 {[%clk 0:02:57]}  Nf5 {[%clk 0:02:44]} 7. Bf4 {[%clk 0:02:56]}  h5 {[%clk 0:02:43]} 8. Nf3 {[%clk 0:02:56]}  f6 {[%clk 0:02:37]} 9. Bd3 {[%clk 0:02:46]}  Kf7 {[%clk 0:02:27]} 10. O-O {[%clk 0:02:40]}  g5 {[%clk 0:02:25]} 11. Bxg5 {[%clk 0:02:01]}  fxg5 {[%clk 0:02:25]} 12. e6+ {[%clk 0:02:02]}  Kxe6 {[%clk 0:02:10]} 13. Bxf5+ {[%clk 0:01:58]}  Kf7 {[%clk 0:02:03]} 14. Nxg5+ {[%clk 0:01:31]}  Kg8 {[%clk 0:01:54]} 15. Be6+ {[%clk 0:01:27]}  Bxe6 {[%clk 0:01:53]} 16. Nxe6 {[%clk 0:01:28]}  Qd6 {[%clk 0:01:51]} 17. Nxg7 {[%clk 0:01:27]}  Kxg7 {[%clk 0:01:52]} 18. Qg5+ {[%clk 0:01:27]}  Kf7 {[%clk 0:01:52]} 19. Rae1 {[%clk 0:01:27]}  Nd7 {[%clk 0:01:50]} 20. Re3 {[%clk 0:01:26]}  Nf6 {[%clk 0:01:47]} 21. Rfe1 {[%clk 0:01:25]}  Rae8 {[%clk 0:01:47]} 22. Qf5 {[%clk 0:01:12]}  Qd7 {[%clk 0:01:40]} 23. Re6 {[%clk 0:01:11]}  Qc7 {[%clk 0:01:27]} 24. Ne2 {[%clk 0:01:01]}  Rh6 {[%clk 0:01:16]} 25. Nf4 {[%clk 0:00:58]}  Qa5 {[%clk 0:01:12]} 26. Nxh5 {[%clk 0:00:42]}  Qxe1+ {[%clk 0:01:05]} 27. Rxe1 {[%clk 0:00:43]}  Rxh5 {[%clk 0:01:05]} 28. Qf4 {[%clk 0:00:40]}  e6 {[%clk 0:00:57]} 29. Re3 {[%clk 0:00:34]}  Rg5 {[%clk 0:00:55]} 30. Qxg5 {[%clk 0:00:34]} 1-0


[Site "https://www.chess.com"]